bitfinex-derivatives/quotes_ETHF0:USTF0_20260120
["timestamp","ask_amount","ask_price","bid_price","bid_amount"]
[1768944704143,0.0041623,2997.8,2996.3,0.13977289]
[1768944705133,0.0041623,2997.8,2996.0,1.33885175]
[1768944705134,0.0041623,2997.8,2996.5,0.14419774]
[1768944713349,0.0041623,2997.8,2996.8,0.14419774]
[1768944714539,0.0041623,2997.8,2996.7,1.33882175]
[1768944714540,0.0041623,2997.8,2997.1,0.14419774]
[1768944714949,0.16695,2998.3,2997.1,0.14419774]
[1768944715949,0.17124345,2998.3,2997.1,0.14419774]
[1768944721447,0.16696,2998.1,2997.1,0.14419774]
[1768944721652,0.16697,2997.9,2996.7,0.14419774]
[1768944721951,1.17178175,2997.8,2996.7,0.14419774]
[1768944722549,0.16697,2997.9,2996.7,0.14419774]
[1768944724354,0.16697,2997.9,2996.8,0.14419774]
[1768944727853,0.00429345,2998.3,2996.8,0.14419774]
[1768944730055,0.17124345,2998.3,2996.8,0.14419774]
[1768944732155,0.17124345,2998.3,2997.5,0.01574913]
[1768944732557,0.17124345,2998.3,2997.1,0.14419774]
[1768944732745,0.17124345,2998.3,2997.9,0.03143993]
[1768944732946,0.17124345,2998.3,2998.1,0.03581081]
[1768944733154,0.17124345,2998.3,2997.9,0.00322935]
[1768944733649,0.17124345,2998.3,2997.1,0.14419774]
[1768944733854,1.17178175,2998.0,2996.7,0.31123774]
[1768944734356,0.16695,2998.2,2996.7,0.31123774]
[1768944734563,0.16695,2998.2,2996.7,0.31442753]
[1768944734753,0.16695,2998.2,2996.8,0.14419774]
[1768944738157,0.18867086,2998.1,2996.8,0.14419774]
[1768944738947,0.16697,2998.0,2996.8,0.14419774]
[1768944746964,0.16697,2997.9,2996.8,0.14419774]
[1768944751161,1.1948362,2998.0,2996.7,0.00318979]
[1768944751464,0.02305445,2997.9,2996.7,0.00318979]
[1768944752958,1.17076076,2997.7,2996.7,0.00318979]
[1768944753654,0.16699,2997.6,2996.7,0.00318979]
[1768944760270,1.17076076,2997.3,2996.7,0.00318979]
[1768944765478,1.17076076,2997.5,2996.7,0.00318979]
[1768944798204,1.17076076,2997.3,2996.7,0.00318979]
[1768944799709,1.17076076,2997.5,2996.7,0.00318979]
[1768944806812,1.17076076,2997.3,2996.7,0.00318979]
[1768944807109,0.00429345,2998.3,2996.1,4.18815796]
[1768944807110,1.17076076,2996.9,2996.1,4.18815796]
[1768944807309,1.17076076,2996.9,2995.9,1.17076076]
[1768944807713,1.17076076,2996.9,2995.7,4.32732693]
[1768944807910,1.17076076,2996.7,2995.7,4.32732693]
[1768944808112,1.17076076,2996.7,2995.7,0.14154492]
[1768944809013,1.17076076,2996.9,2995.8,1.17076076]
[1768944809207,1.17076076,2996.7,2995.7,0.14154492]
[1768944809414,1.17076076,2996.7,2995.7,0.00237595]
[1768944810710,1.17076076,2996.5,2995.7,0.00237595]
[1768944812016,1.17076076,2996.3,2995.7,0.00237595]
[1768944812310,1.1869638,2996.7,2995.7,0.00237595]
[1768944812311,1.17076076,2996.5,2995.7,0.00237595]
[1768944812914,1.18796924,2996.7,2995.7,0.00237595]
[1768944814415,0.01655123,2996.6,2995.7,0.00237595]
[1768944817225,0.01788319,2996.3,2995.7,0.00237595]
[1768944817517,1.1717662,2996.1,2994.8,0.13916897]
[1768944817724,0.16707,2996.1,2994.8,0.13916897]
[1768944818623,0.16707,2996.1,2994.5,2.27016897]
[1768944818624,1.35708146,2996.1,2994.5,2.27016897]
[1768944818815,1.36085829,2996.1,2994.5,2.2733649]
[1768944819017,1.36085829,2996.1,2994.6,0.13916897]
[1768944819319,1.36085829,2996.1,2994.5,2.13419593]
[1768944819320,0.01824526,2996.0,2994.5,0.00319593]
[1768944819624,0.01824526,2995.7,2994.5,0.00319593]
[1768944819917,1.1717662,2995.5,2994.5,0.00319593]
[1768944820318,1.18979491,2995.5,2994.5,0.00319593]
[1768944820724,1.1717662,2995.2,2994.5,0.00319593]
[1768944821125,0.01802871,2995.4,2994.5,0.00319593]
[1768944821822,1.1717662,2995.2,2994.5,0.00319593]
[1768944824227,1.1717662,2995.2,2994.5,0.35319593]
[1768944824627,1.1717662,2995.2,2993.7,0.13916897]
[1768944824831,1.1717662,2994.9,2993.7,0.13916897]
[1768944825031,1.1717662,2994.9,2993.4,0.16722]
[1768944825238,1.1717662,2993.6,2992.7,4.18815796]
[1768944825426,1.3389462,2994.2,2992.4,0.14005245]
[1768944825627,0.16994266,2994.2,2993.0,0.14005245]
[1768944827127,0.16994266,2994.2,2992.6,0.14005245]
[1768944831434,0.00276266,2994.2,2992.8,0.14005245]
[1768944831637,0.00276266,2994.2,2993.1,0.14005245]
[1768944836428,0.00276266,2994.2,2993.4,0.14005245]
[1768944838942,0.00276266,2994.2,2992.6,0.14005245]
[1768944838943,1.17627627,2994.2,2992.6,0.14005245]
[1768944839339,1.1717662,2993.9,2992.6,0.14005245]
[1768944839541,1.34347627,2994.2,2992.6,0.14005245]
[1768944839941,0.00506398,2994.1,2992.6,0.14005245]
[1768944840942,0.00506398,2994.1,2992.6,1.31181865]
[1768944843045,0.00506398,2994.1,2992.6,0.14005245]
[1768944845148,0.17226398,2994.1,2992.6,0.14005245]
[1768944848751,0.17226398,2994.1,2992.7,0.14005245]
[1768944849950,1.1717662,2993.6,2992.4,0.1442239]
[1768944850150,1.3389962,2993.6,2992.4,0.1442239]
[1768944850352,0.16723,2993.5,2992.4,0.00417145]
[1768944850552,1.16235571,2993.5,2992.4,0.00417145]
[1768944850750,0.16723,2993.5,2992.4,0.00417145]
[1768944850948,1.1717662,2993.3,2992.4,0.00417145]
[1768944851250,0.00716878,2993.2,2992.4,0.00417145]
[1768944851446,1.1717662,2993.0,2992.4,0.00417145]
[1768944851645,0.16727,2992.8,2991.6,0.14005245]
[1768944851844,1.1717662,2992.4,2991.2,0.14005245]
[1768944852046,0.99027453,2992.3,2990.8,1.00214734]
[1768944852346,0.00897006,2992.8,2991.3,0.14005245]
[1768944852548,0.98929941,2992.7,2991.6,0.14005245]
[1768944852748,0.16726,2993.1,2991.6,0.14005245]
[1768944852946,0.98941558,2993.0,2991.6,0.14005245]
[1768944853140,0.98941558,2992.9,2991.6,0.14005245]
[1768944853347,1.1717662,2992.7,2991.6,0.14005245]
[1768944853742,1.1717662,2992.7,2991.3,0.00313397]
[1768944854348,1.1717662,2992.7,2991.3,0.14318642]
[1768944855150,0.17623006,2993.0,2991.3,0.14318642]
[1768944855365,0.98905557,2992.9,2991.5,0.13903964]
[1768944855655,0.16726,2993.0,2991.5,0.13903964]
[1768944855856,0.9890748,2992.9,2991.5,0.13903964]
[1768944856057,0.16726,2993.0,2991.5,0.13903964]
[1768944856250,1.1717662,2993.2,2991.5,0.13903964]
[1768944856451,0.98876505,2993.1,2991.7,0.13903964]
[1768944856654,0.0059032,2993.4,2991.7,0.13903964]
[1768944856851,0.98883233,2993.3,2991.7,0.13903964]
[1768944857052,0.98883233,2993.2,2991.7,0.13903964]
[1768944857251,0.0059032,2993.4,2991.7,0.13903964]
[1768944857462,0.98860151,2993.3,2991.7,0.13903964]
[1768944857653,0.98860151,2993.2,2991.7,0.13903964]
[1768944857853,0.98860188,2993.1,2991.7,0.13903964]
[1768944858058,1.1717662,2993.2,2991.7,0.13903964]
[1768944862867,0.17483204,2993.8,2992.0,0.13903964]
[1768944863058,0.98769743,2993.7,2992.3,0.13903964]
[1768944863258,0.17483204,2993.8,2992.3,0.13903964]
[1768944863459,0.98792923,2993.7,2992.3,0.13903964]
[1768944863659,0.17483204,2993.8,2992.3,0.13903964]
[1768944863861,0.9879244,2993.7,2992.3,0.13903964]
[1768944864167,0.17483204,2993.8,2992.3,0.13903964]
[1768944864367,0.98815829,2993.7,2992.3,0.13903964]
[1768944864566,0.17483204,2993.8,2992.3,0.13903964]
[1768944864767,0.98812198,2993.7,2992.3,0.13903964]
[1768944864969,0.17483204,2993.8,2992.3,0.13903964]
[1768944865268,0.00799676,2993.6,2992.2,0.1673]
[1768944865868,0.00799676,2993.6,2992.2,0.30633964]
[1768944867565,0.16722,2993.7,2992.3,0.30633964]
[1768944867870,0.16722,2993.7,2992.4,0.13903964]
[1768944868064,0.17589226,2993.7,2992.3,0.1673]
[1768944868364,1.1717662,2992.7,2991.2,0.30639964]
[1768944874870,1.17474539,2992.6,2991.5,1.17474539]
[1768944878572,1.17474539,2992.4,2991.3,1.316919]
[1768944878775,1.17474539,2992.6,2991.5,1.17474539]
[1768944881376,1.17474539,2992.4,2991.3,0.14217361]
[1768944881681,1.17474539,2992.2,2991.3,0.00313397]
[1768944881871,1.17474539,2992.0,2991.3,0.00313397]
[1768944882079,1.17870976,2992.0,2991.3,0.00313397]
[1768944884182,0.00396437,2992.0,2991.3,0.00313397]
[1768944886685,0.00396437,2992.0,2991.3,1.17787936]
[1768944888475,0.00396437,2992.0,2991.3,0.00313397]
[1768944889081,1.17474539,2991.8,2991.3,0.00313397]
[1768944889286,1.17474539,2991.8,2990.8,0.16738]
[1768944889987,1.17474539,2991.8,2990.7,1.17474539]
[1768944890484,1.17474539,2991.8,2990.7,1.17905428]
[1768944890876,1.17474539,2991.6,2990.7,1.17905428]
[1768944892184,1.17474539,2991.8,2990.7,1.17905428]
[1768944894689,0.00396437,2992.0,2991.3,1.17474539]
[1768944901795,0.00396437,2992.0,2991.1,1.31963558]
[1768944902791,0.00396437,2992.0,2991.2,0.14489019]
[1768944903087,0.00396437,2992.0,2991.5,1.31963558]
[1768944903494,1.17474539,2992.6,2991.5,1.31963558]
[1768944904493,1.17783211,2992.6,2991.5,1.31963558]
[1768944904694,0.00308672,2992.6,2991.8,0.14489019]
[1768944904887,0.00308672,2992.6,2992.0,1.17474539]
[1768944905087,1.17474539,2993.2,2992.0,1.17474539]
[1768944905295,0.98887532,2993.1,2992.0,1.17474539]
[1768944905493,1.17474539,2993.0,2992.0,1.17474539]
[1768944905995,1.17895628,2993.0,2992.0,1.17474539]
[1768944906299,0.00421089,2993.0,2992.2,1.17474539]
[1768944906483,1.35171322,2993.9,2992.3,0.14489019]
[1768944906691,1.17474539,2993.4,2992.4,0.14489019]
[1768944906892,1.17474539,2993.2,2992.4,0.14489019]
[1768944907490,0.00350775,2993.2,2992.4,1.31963558]
[1768944907690,0.00350775,2993.2,2992.5,0.14489019]
[1768944907891,1.17474539,2993.4,2992.5,0.14489019]
[1768944908494,1.17474539,2993.8,2992.8,1.17474539]
[1768944908993,1.17751301,2993.8,2992.8,0.00273597]
[1768944909590,1.17751301,2993.8,2992.8,0.14762616]
[1768944913703,1.17751301,2993.8,2992.8,0.00273597]
[1768944917105,0.00276762,2993.8,2992.9,1.17474539]
[1768944918500,0.00276762,2993.8,2993.1,1.17474539]
[1768944918706,1.17474539,2994.2,2993.3,1.17474539]
[1768944918911,1.17474539,2994.2,2993.1,1.31067049]
[1768944919610,1.17790617,2994.2,2993.1,1.31067049]
[1768944922111,1.17790617,2994.2,2993.1,1.17474539]
[1768944922309,1.17474539,2993.4,2992.8,0.00273597]
[1768944922514,1.17474539,2993.6,2992.8,0.00273597]
[1768944922917,1.17474539,2993.8,2992.8,0.00273597]
[1768944923615,1.17474539,2994.1,2993.1,1.17474539]
[1768944923916,1.17474539,2994.1,2992.9,1.31067049]
[1768944930023,1.17474539,2993.9,2992.9,1.31067049]
[1768944930223,1.17474539,2993.7,2992.8,0.00273597]
[1768944930519,1.17474539,2993.9,2992.8,0.00273597]
[1768944930719,1.17474539,2993.9,2992.9,1.17474539]
[1768944931915,0.00316078,2994.2,2993.1,1.17474539]
[1768944932222,1.17474539,2994.0,2992.9,1.34200539]
[1768944933124,1.17474539,2994.0,2992.9,0.16726]
[1768944933329,0.17035078,2994.2,2992.8,0.00273597]
[1768944933521,1.17474539,2993.8,2992.8,0.13866107]
[1768944933722,1.17474539,2994.0,2992.9,1.17474539]
[1768944934923,1.34405389,2994.2,2992.8,0.13866107]
[1768944935123,1.17686389,2994.2,2992.8,0.13866107]
[1768944940324,0.00316078,2994.2,2992.9,0.1359251]
[1768944940930,1.18949494,2994.2,2992.8,0.17000597]
[1768944941931,0.98854995,2994.1,2992.8,0.17000597]
[1768944942133,1.18949494,2994.2,2992.8,0.17000597]
[1768944942134,0.00316078,2994.2,2992.9,0.1359251]
[1768944944031,0.00316078,2994.2,2992.8,0.17000597]
[1768944944032,0.98866646,2994.1,2992.8,0.17000597]
[1768944944238,1.18894363,2994.2,2992.8,0.17000597]
[1768944944534,0.98871698,2994.1,2992.8,0.17000597]
[1768944944724,1.18894363,2994.2,2992.8,0.17000597]
[1768944944926,0.98871549,2994.1,2992.8,0.17000597]
[1768944945124,1.18894363,2994.2,2992.8,0.17000597]
[1768944945325,0.98880359,2994.1,2992.8,0.17000597]
[1768944945527,0.01524052,2994.2,2992.8,0.17000597]
[1768944945826,0.98876465,2994.1,2992.8,0.17000597]
[1768944946027,0.01524052,2994.2,2992.8,0.17000597]
[1768944946227,0.98886173,2994.1,2992.8,0.17000597]
[1768944946524,0.01524052,2994.2,2992.8,0.17000597]
[1768944946720,0.98886078,2994.1,2992.8,0.17000597]
[1768944946923,0.01524052,2994.2,2992.8,0.17000597]
[1768944947124,0.98886932,2994.1,2992.8,0.17000597]
[1768944947425,0.01524052,2994.2,2992.8,0.17000597]
[1768944947626,0.98896475,2994.1,2992.8,0.17000597]
[1768944947828,0.01524052,2994.2,2992.8,0.17000597]
[1768944948035,0.98896553,2994.1,2992.8,0.17000597]
[1768944948229,0.01524052,2994.2,2992.8,0.17000597]
[1768944948430,0.98896275,2994.1,2992.8,0.17000597]
[1768944948629,0.01524052,2994.2,2992.8,0.17000597]
[1768944948929,0.98896438,2994.1,2992.8,0.17000597]
[1768944949228,0.01524052,2994.2,2992.8,0.17000597]
[1768944949429,0.98901013,2994.1,2992.8,0.17000597]
[1768944949635,0.01524052,2994.2,2992.8,0.17000597]
[1768944949843,0.98901498,2994.1,2992.8,0.17000597]
[1768944950136,0.01524052,2994.2,2992.8,0.17000597]
[1768944950333,0.98910562,2994.1,2992.8,0.17000597]
[1768944950533,0.01524052,2994.2,2992.8,0.17000597]
[1768944950739,0.98910265,2994.1,2992.8,0.17000597]
[1768944951039,0.01524052,2994.2,2992.8,0.17000597]
[1768944951238,0.98909199,2994.1,2992.8,0.17000597]
[1768944951536,0.01524052,2994.2,2992.8,0.17000597]
[1768944951737,0.98909225,2994.1,2992.8,0.17000597]
[1768944951939,0.01524052,2994.2,2992.8,0.17000597]
[1768944952140,0.98909198,2994.1,2992.8,0.17000597]
[1768944952334,0.01524052,2994.2,2992.8,0.17000597]
[1768944952539,0.98930228,2994.1,2992.9,0.14244987]
[1768944952742,0.01524052,2994.2,2992.9,0.14244987]
[1768944952937,0.98930428,2994.1,2992.9,0.14244987]
[1768944953246,0.01524052,2994.2,2992.9,0.14244987]
[1768944953536,0.98929427,2994.1,2992.9,0.14244987]
[1768944953731,0.01524052,2994.2,2992.9,0.14244987]
[1768944953932,0.98929376,2994.1,2992.9,0.14244987]
[1768944954134,0.01524052,2994.2,2992.9,0.14244987]
[1768944957044,0.00316078,2994.2,2992.9,0.14244987]
[1768944958248,0.00316078,2994.2,2993.2,0.14244987]
[1768944960342,0.01219795,2995.4,2994.0,1.17370311]
[1768944960543,0.98786676,2995.3,2994.3,1.17370311]
[1768944960746,0.01219795,2995.8,2994.3,1.17370311]
[1768944960942,1.30037951,2995.7,2994.1,0.14244987]
[1768944961136,0.01217452,2995.5,2994.1,0.14244987]
[1768944961444,1.18587763,2994.8,2993.4,0.16724]
[1768944961750,0.01217452,2994.7,2993.4,0.16724]
[1768944963645,0.17922247,2995.1,2993.4,0.30968987]
[1768944965850,1.17370311,2994.6,2993.0,0.14244987]
[1768944966039,1.17370311,2994.6,2993.1,0.14244987]
[1768944969358,1.1846021,2994.6,2993.1,0.14244987]
[1768944972354,1.17370311,2994.3,2993.1,0.14244987]
[1768944974554,1.17370311,2994.3,2993.0,2.28226]
[1768944977051,1.17370311,2994.0,2992.9,0.14244987]
[1768944980056,1.17370311,2994.0,2992.8,0.00273597]
[1768944981559,1.34090311,2994.0,2992.8,0.00273597]
[1768944982460,1.17370311,2993.7,2992.8,0.00273597]
[1768944986457,0.16722,2993.8,2992.8,0.00273597]
[1768944996872,1.17378481,2993.7,2992.8,0.00273597]
[1768944998876,1.17378481,2993.7,2993.2,0.01422986]
[1768945000079,1.17378481,2993.7,2993.4,0.01422986]
[1768945000374,1.17378481,2993.7,2992.8,0.00273597]
[1768945000874,1.17378481,2993.7,2993.2,0.02072222]
[1768945001675,1.17378481,2993.7,2993.4,0.03640341]
[1768945002072,1.17378481,2993.7,2993.5,0.0520846]
[1768945002269,1.17378481,2993.7,2993.6,0.01568119]
[1768945002575,1.17378481,2993.7,2992.8,0.00273597]
[1768945004775,1.17378481,2993.7,2992.7,2.38512078]
[1768945005875,1.17378481,2993.7,2992.7,2.38760437]
[1768945017179,1.18001991,2994.4,2993.3,1.17378481]
[1768945017373,1.17378481,2994.2,2993.3,1.17378481]
[1768945017576,1.17378481,2994.2,2993.1,1.17378481]
[1768945018284,1.17378481,2994.9,2993.7,1.17378481]
[1768945018480,1.17378481,2994.9,2993.7,1.3218458]
[1768945019279,1.17378481,2995.1,2994.0,0.14806099]
[1768945019682,1.17378481,2994.9,2994.0,0.14806099]
[1768945020372,1.17378481,2995.1,2994.1,1.3218458]
[1768945021480,1.17378481,2994.9,2994.1,0.14806099]
[1768945021676,1.17378481,2994.5,2993.6,0.16722]
[1768945021983,1.17378481,2994.9,2993.7,1.3218458]
[1768945022183,1.17378481,2994.9,2993.8,0.14806099]
[1768945026790,1.17378481,2994.9,2993.9,1.17378481]
[1768945029491,1.17378481,2994.9,2993.8,0.14806099]
[1768945035896,1.17378481,2994.7,2993.8,0.14806099]
[1768945051812,1.17378481,2994.7,2993.8,2.25706099]
[1768945053616,1.17378481,2994.7,2993.8,0.14806099]
[1768945053914,1.17378481,2994.7,2993.8,2.25706099]
[1768945058809,1.17378481,2995.0,2993.8,3.4308458]
[1768945059008,1.17417489,2995.2,2993.8,2.25706099]
[1768945059218,1.27384284,2995.1,2993.8,2.25706099]
[1768945059519,0.97353969,2995.0,2993.8,2.25706099]
[1768945059816,1.17417489,2995.2,2993.8,2.25706099]
[1768945060018,1.27383521,2995.1,2993.8,2.25706099]
[1768945060218,0.9735337,2995.0,2993.8,2.25706099]
[1768945060416,1.17417489,2995.2,2993.8,2.25706099]
[1768945060621,1.27384239,2995.1,2993.8,2.25706099]
[1768945060914,0.97353934,2995.0,2993.8,2.25706099]
[1768945061116,1.17725786,2995.5,2993.9,0.13647679]
[1768945061314,1.17294555,2995.2,2993.9,0.13647679]
[1768945061617,0.97354314,2995.1,2993.9,0.13647679]
[1768945061820,1.17294555,2995.2,2993.9,0.13647679]
[1768945062023,0.97344984,2995.1,2993.9,0.13647679]
[1768945062214,1.17725786,2995.5,2993.9,0.13647679]
[1768945062414,1.27298664,2995.4,2993.9,0.13647679]
[1768945062616,1.27298664,2995.3,2993.9,0.13647679]
[1768945062918,1.17725786,2995.5,2993.9,0.13647679]
[1768945062919,0.00294454,2995.5,2994.4,1.30942234]
[1768945063222,0.00294454,2995.5,2994.5,0.13647679]
[1768945067218,1.17453248,2996.4,2994.7,1.3188786]
[1768945067422,1.26939317,2996.3,2994.8,2.11]
[1768945067624,0.96978261,2996.2,2994.8,2.11]
[1768945067825,0.00158693,2996.3,2994.8,2.11]
[1768945068018,0.96938932,2996.2,2994.8,2.11]
[1768945068219,0.0034646,2996.2,2994.8,2.1136232]
[1768945068615,0.0034646,2996.2,2994.8,2.25955625]
[1768945069028,0.0034646,2996.2,2994.9,0.16715]
[1768945069621,0.0034646,2996.2,2994.9,0.31308305]
[1768945070522,0.0034646,2996.2,2995.0,0.14593305]
[1768945071818,0.0034646,2996.2,2995.0,0.31307305]
[1768945072026,0.0034646,2996.2,2995.1,0.14593305]
[1768945072721,0.0034646,2996.2,2995.2,0.14593305]
[1768945072924,0.0034646,2996.2,2995.0,1.17294555]
[1768945072925,0.0034646,2996.2,2995.4,0.14593305]
[1768945073115,0.16704,2997.0,2995.4,0.14593305]
[1768945073320,1.33998555,2997.0,2996.2,0.01571175]
[1768945073517,0.16704,2997.0,2996.2,0.01571175]
[1768945073719,0.00178273,2997.3,2996.2,0.01571175]
[1768945074127,0.00605131,2997.3,2996.2,0.01571175]
[1768945074428,0.00605131,2997.3,2996.7,0.01571175]
[1768945074623,0.00426858,2997.3,2995.7,0.31304305]
[1768945074823,0.00426858,2997.3,2996.5,0.01571175]
[1768945075825,0.00426858,2997.3,2996.9,0.01571175]
[1768945076132,0.00426858,2997.3,2995.8,0.14593305]
[1768945076626,0.17128858,2997.3,2995.8,0.14593305]
[1768945077024,0.17128858,2997.3,2995.8,0.14988226]
[1768945077533,0.16703,2997.2,2995.8,0.14988226]
[1768945080439,0.16703,2997.2,2996.0,0.14593305]
[1768945080826,0.00426858,2997.3,2996.0,0.14593305]
[1768945081031,0.00426858,2997.3,2996.3,0.14593305]
[1768945082435,0.00426858,2997.3,2996.4,0.14593305]
[1768945089342,0.00426858,2997.3,2996.0,0.14593305]
[1768945089646,0.00426858,2997.3,2994.3,23.391]
[1768945089647,0.16704,2996.9,2995.6,5.59293305]
[1768945089848,0.16704,2996.9,2995.6,10.49293305]
[1768945090743,0.16704,2996.9,2995.6,5.04593305]
[1768945091039,0.16704,2996.9,2995.6,7.15093305]
[1768945091246,0.00364623,2997.2,2995.6,7.15093305]
[1768945091445,0.00364623,2997.2,2995.6,2.25093305]
[1768945092350,0.00364623,2997.2,2995.6,3.4238786]
[1768945092646,0.16704,2997.0,2995.6,0.14593305]
[1768945092846,1.17294555,2997.1,2995.4,2.27213]
[1768945092847,0.17047924,2996.9,2995.4,2.27213]
[1768945093040,0.17047924,2996.9,2995.4,0.16713]
[1768945093850,0.16704,2996.9,2995.6,1.17294555]
[1768945094150,0.16704,2996.9,2995.8,0.14988226]
[1768945095152,0.00426858,2997.3,2996.0,0.14162655]
[1768945099749,0.17128858,2997.3,2996.0,0.14162655]
[1768945100254,0.16704,2997.0,2995.8,0.00394921]
[1768945100454,0.16704,2997.0,2995.8,0.14557576]
[1768945114575,1.17294555,2996.8,2995.8,0.00394921]
[1768945114775,1.17294555,2996.5,2995.8,0.00394921]
[1768945115275,0.16706,2996.7,2995.8,0.00394921]
[1768945120879,1.17174397,2996.5,2995.8,0.00394921]
[1768945125478,1.33880397,2996.7,2995.8,0.00394921]
[1768945126777,1.17174397,2997.1,2996.0,1.31178969]
[1768945127082,0.97314237,2997.0,2996.0,1.31178969]
[1768945127278,1.17174397,2997.1,2996.0,1.31178969]
[1768945127473,0.97320983,2997.0,2996.0,0.14004572]
[1768945127674,1.17174397,2997.1,2996.0,0.14004572]
[1768945127979,1.17174397,2996.9,2996.0,0.14004572]
[1768945128480,1.17174397,2996.8,2996.0,0.14004572]
[1768945128680,1.17174397,2997.0,2996.0,0.14004572]
[1768945129882,0.00426858,2997.3,2996.2,1.31178969]
[1768945130081,1.17174397,2997.2,2996.2,1.31178969]
[1768945130486,1.17174397,2997.2,2996.2,0.14004572]
[1768945132576,1.17174397,2997.2,2996.7,0.01570848]
[1768945132976,1.17174397,2997.2,2996.9,0.03141696]
[1768945133386,0.00426858,2997.3,2996.9,0.03141696]
[1768945133879,0.00426858,2997.3,2996.3,0.14004572]
[1768945134078,0.00426858,2997.3,2997.1,0.03141696]
[1768945134279,1.17174397,2997.4,2997.1,0.03141696]
[1768945134479,0.167,2997.7,2997.1,0.03141696]
[1768945134692,1.17174397,2997.4,2997.1,0.03141696]
[1768945134984,1.1204213,2997.4,2997.2,0.03141696]
[1768945135283,1.12423115,2997.4,2996.4,1.31178969]
[1768945141993,1.12423115,2997.4,2996.5,0.14004572]
[1768945144397,0.00380985,2997.4,2996.5,0.14004572]
[1768945144600,0.00380985,2997.4,2996.8,1.17174397]
[1768945146486,0.00380985,2997.4,2996.6,1.17174397]
[1768945146684,0.00380985,2997.4,2996.7,0.14004572]
[1768945151697,0.00380985,2997.4,2996.8,1.17174397]
[1768945151893,0.00380985,2997.4,2996.8,1.31178969]
[1768945154804,0.16698,2998.1,2997.0,1.17174397]
[1768945155005,0.16698,2998.1,2997.2,1.17174397]
[1768945155197,0.16698,2998.1,2997.0,1.31178969]
[1768945155800,0.17066005,2998.1,2997.0,1.31178969]
[1768945156003,1.17174397,2998.0,2997.0,0.14004572]
[1768945163207,1.17174397,2998.0,2997.0,1.31178969]
[1768945163510,0.17066005,2998.1,2997.0,0.14004572]
[1768945163704,0.17066005,2998.1,2997.2,1.17174397]
[1768945165114,0.17066005,2998.1,2997.0,1.31178969]
[1768945165311,0.17066005,2998.1,2997.1,0.14347368]
[1768945174405,0.17066005,2998.1,2997.2,1.17174397]
[1768945174905,0.17066005,2998.1,2997.2,1.31521765]
[1768945175113,0.17066005,2998.1,2997.4,1.17174397]
[1768945175322,6.449,2999.1,2997.4,1.17174397]
[1768945175323,0.16695,2998.6,2997.8,1.17174397]
[1768945175616,0.16695,2998.6,2998.0,1.17174397]
[1768945175817,0.16695,2998.6,2997.8,1.17174397]
[1768945176616,0.17106036,2998.6,2997.8,1.17531077]
[1768945177917,0.00411036,2998.6,2997.8,1.17531077]
[1768945178322,0.00411036,2998.6,2997.8,0.0035668]
[1768945185823,1.33700192,2998.3,2997.1,0.14735692]
[1768945186018,1.17003192,2998.0,2996.7,0.14735692]
[1768945186219,0.16699,2997.9,2996.7,0.14735692]
[1768945186421,1.17003192,2997.7,2996.7,0.14735692]
[1768945186817,0.16699,2997.8,2996.7,0.15151416]
[1768945193225,1.17003192,2998.3,2996.7,0.15151416]
[1768945193419,0.97314939,2998.2,2996.7,0.15151416]
[1768945193621,1.33700192,2998.3,2996.7,0.15151416]
[1768945193821,0.97314667,2998.2,2996.7,0.15151416]
[1768945194020,1.33700192,2998.3,2996.7,0.15151416]
[1768945194324,0.97314667,2998.2,2996.7,0.15151416]
[1768945194527,1.33700192,2998.3,2996.7,0.15151416]
[1768945194725,0.97315085,2998.2,2996.7,0.15151416]
[1768945194922,0.16698,2998.1,2996.7,0.15151416]
[1768945195428,1.17003192,2998.0,2996.7,0.15151416]
[1768945195726,1.17003192,2997.7,2996.7,0.00415724]
[1768945195928,1.33703192,2997.7,2996.7,0.00415724]
[1768945196118,1.17003192,2997.4,2996.7,0.00415724]
[1768945197227,1.17003192,2997.4,2995.9,0.14735692]
[1768945198328,1.17003192,2997.4,2995.9,0.15019662]
[1768945200330,1.17003192,2997.1,2995.9,0.15019662]
[1768945200531,1.17003192,2997.4,2995.9,0.15019662]
[1768945200833,1.33705192,2997.4,2995.9,0.15019662]
[1768945201132,0.16702,2997.3,2995.9,0.15019662]
[1768945201626,0.16704,2997.0,2995.9,0.15019662]
[1768945202733,1.17003192,2996.8,2995.9,0.0028397]
[1768945203729,1.33708192,2996.8,2995.9,0.0028397]
[1768945204227,0.16705,2996.8,2995.9,0.0028397]
[1768945204530,0.16705,2996.7,2995.9,0.0028397]
[1768945212040,0.16706,2996.6,2995.9,0.0028397]
[1768945213636,1.33710192,2996.5,2995.1,0.14735692]
[1768945213832,0.16707,2996.5,2995.1,0.14735692]
[1768945214538,0.16982646,2996.5,2995.1,0.15167988]
[1768945215340,0.16982646,2996.5,2995.3,0.14430806]
[1768945216042,0.16703,2997.1,2995.9,0.14430806]
[1768945216242,0.16701,2997.5,2995.9,0.14430806]
[1768945216643,1.33704192,2997.4,2995.9,0.14430806]
[1768945217142,1.3395056,2997.4,2995.9,0.14430806]
[1768945220035,0.00246368,2997.4,2996.1,0.14430806]
[1768945220233,0.00246368,2997.4,2996.5,0.14430806]
[1768945225936,1.1724956,2997.4,2996.1,0.14430806]
[1768945229246,0.16702,2997.3,2996.1,0.14430806]
[1768945229650,0.16703,2997.2,2996.1,0.14430806]
[1768945229950,1.33706192,2997.1,2996.1,0.14430806]
[1768945230939,1.17003192,2997.1,2995.7,0.14430806]
[1768945231252,1.33708192,2996.8,2995.3,0.14430806]
[1768945232050,0.16706,2996.7,2995.3,0.14430806]
[1768945232251,0.16706,2996.6,2995.3,0.14430806]
[1768945232449,1.17003192,2996.5,2995.3,0.14430806]
[1768945236053,1.33710192,2996.5,2995.3,0.14430806]
[1768945238556,0.16707,2996.4,2995.3,0.14430806]
[1768945238958,0.16705,2996.9,2995.6,0.14430806]
[1768945239551,1.33708192,2996.8,2995.6,0.14430806]
[1768945241247,1.1724956,2997.4,2995.2,5.04430806]
[1768945241248,1.17003192,2996.5,2995.2,5.04430806]
[1768945241448,1.17003192,2996.5,2995.3,0.14430806]
[1768945244863,0.16706,2996.6,2995.3,0.14430806]
[1768945244864,1.17176367,2996.4,2995.4,0.14593234]
[1768945251175,1.17176367,2996.0,2995.4,0.14593234]
[1768945251372,1.17176367,2996.2,2995.4,0.14593234]
[1768945251964,1.17176367,2996.2,2995.1,1.17608663]
[1768945252374,1.17176367,2996.2,2995.1,1.3243418]
[1768945252871,1.17176367,2996.0,2995.1,0.15257813]
[1768945255565,1.17176367,2995.8,2995.1,0.15257813]
[1768945256564,1.17176367,2995.8,2995.1,0.00432296]
[1768945256770,6.33781978,2997.4,2995.1,0.00432296]
[1768945256771,1.17176367,2995.6,2995.1,0.00432296]
[1768945257374,1.17176367,2995.8,2995.1,0.00432296]
[1768945261976,1.17176367,2996.4,2995.3,1.32001884]
[1768945262374,1.17176367,2996.2,2995.3,0.14825517]
[1768945263484,1.17176367,2996.0,2995.1,0.00432296]
[1768945278898,1.17176367,2995.6,2994.7,0.16716]
[1768945279899,1.17176367,2995.6,2994.7,0.17042072]
[1768945280397,1.17176367,2995.8,2994.7,0.17042072]